[Event "Early-Titled-Tuesday-Blitz-May-07-2024"]
[Site "Chess.com"]
[Date "2024.05.07"]
[Round "3"]
[White "kanzaww"]
[Black "Crasmus"]
[Result "0-1"]
[WhiteElo "2517"]
[BlackElo "2330"]
[TimeControl "180+1"]
[EndTime "8:31:38 PDT"]
[Termination "Crasmus won by checkmate"]

1. e4 {[%clk 0:02:11.9]} 1... c5 {[%clk 0:03:00.9]} 2. Nf3 {[%clk 0:02:11.3]}
2... e6 {[%clk 0:03:01.3]} 3. d4 {[%clk 0:02:08.4]} 3... cxd4 {[%clk 0:03:02.2]}
4. Nxd4 {[%clk 0:02:08.2]} 4... a6 {[%clk 0:03:02.9]} 5. c4 {[%clk 0:02:05.4]}
5... Nf6 {[%clk 0:03:02.6]} 6. Nc3 {[%clk 0:02:04.2]} 6... Bb4 {[%clk 0:03:03]}
7. Qd3 {[%clk 0:01:58.5]} 7... Qc7 {[%clk 0:03:03.4]} 8. Be2 {[%clk 0:01:51.7]}
8... Nc6 {[%clk 0:03:02]} 9. Nxc6 {[%clk 0:01:50.2]} 9... dxc6 {[%clk
0:03:01.2]} 10. O-O {[%clk 0:01:49.5]} 10... e5 {[%clk 0:03:01.8]} 11. Be3
{[%clk 0:01:38.2]} 11... Ng4 {[%clk 0:02:53.3]} 12. Bd2 {[%clk 0:01:34.2]} 12...
O-O {[%clk 0:02:49.3]} 13. a3 {[%clk 0:01:33.2]} 13... Rd8 {[%clk 0:02:47.6]}
14. Qc2 {[%clk 0:01:33.2]} 14... Bc5 {[%clk 0:02:47.2]} 15. b4 {[%clk
0:01:33.2]} 15... Bd4 {[%clk 0:02:47.2]} 16. Rad1 {[%clk 0:01:30.3]} 16... Qe7
{[%clk 0:02:45.9]} 17. h3 {[%clk 0:01:30.3]} 17... Nxf2 {[%clk 0:02:40.6]} 18.
Rxf2 {[%clk 0:01:30.1]} 18... Qh4 {[%clk 0:02:41.3]} 19. Rf1 {[%clk 0:01:27]}
19... Bxh3 {[%clk 0:02:41.1]} 20. Nd1 {[%clk 0:01:19.3]} 20... Qg3 {[%clk
0:02:31.9]} 21. Kh1 {[%clk 0:01:11.4]} 21... Bxf2 {[%clk 0:02:27.7]} 22. Rxf2
{[%clk 0:01:12.3]} 22... Rd6 {[%clk 0:02:18.5]} 23. gxh3 {[%clk 0:01:10.1]}
23... Rad8 {[%clk 0:02:17.9]} 24. Be3 {[%clk 0:00:41.2]} 24... Rxd1+ {[%clk
0:02:09.6]} 25. Bxd1 {[%clk 0:00:42.1]} 25... Qxe3 {[%clk 0:02:07.5]} 26. Qe2
{[%clk 0:00:40.7]} 26... Qxh3+ {[%clk 0:02:01.9]} 27. Rh2 {[%clk 0:00:39.4]}
27... Qxa3 {[%clk 0:02:01.8]} 28. Rg2 {[%clk 0:00:27.2]} 28... Qxb4 {[%clk
0:01:53.8]} 29. Qg4 {[%clk 0:00:27]} 29... g6 {[%clk 0:01:47.6]} 30. Be2 {[%clk
0:00:26.6]} 30... Qc5 {[%clk 0:01:40.4]} 31. Qg5 {[%clk 0:00:26.2]} 31... Qd4
{[%clk 0:01:35.6]} 32. Qh4 {[%clk 0:00:24.2]} 32... Qa1+ {[%clk 0:01:27.5]} 33.
Kh2 {[%clk 0:00:24.2]} 33... Rd2 {[%clk 0:01:25.2]} 34. Rf2 {[%clk 0:00:16.8]}
34... Qd4 {[%clk 0:01:16.6]} 35. Qf6 {[%clk 0:00:15.9]} 35... Qd7 {[%clk
0:01:13.8]} 36. Kg3 {[%clk 0:00:15.4]} 36... a5 {[%clk 0:01:00.3]} 37. Bg4
{[%clk 0:00:15.3]} 37... Rd3+ {[%clk 0:00:55.1]} 38. Kh4 {[%clk 0:00:15.1]}
38... Qd8 {[%clk 0:00:53.2]} 39. Kg5 {[%clk 0:00:12.2]} 39... h5 {[%clk
0:00:43.5]} 40. Be2 {[%clk 0:00:06.9]} 40... Rg3+ {[%clk 0:00:38.8]} 41. Kh6
{[%clk 0:00:07]} 41... Qf8+ {[%clk 0:00:38.2]} 42. Qg7+ {[%clk 0:00:05.9]} 42...
Qxg7# {[%clk 0:00:38.5]} 0-1

[Event "Early-Titled-Tuesday-Blitz-May-07-2024"]
[Site "Chess.com"]
[Date "2024.05.07"]
[Round "3"]
[White "MITerryble"]
[Black "superjem123"]
[Result "1-0"]
[WhiteElo "3042"]
[BlackElo "2743"]
[TimeControl "180+1"]
[EndTime "8:31:40 PDT"]
[Termination "MITerryble won on time"]

1. d4 {[%clk 0:03:00.9]} 1... Nf6 {[%clk 0:02:59.5]} 2. Bg5 {[%clk 0:03:00.9]}
2... d5 {[%clk 0:02:58.8]} 3. e3 {[%clk 0:02:58]} 3... Nbd7 {[%clk 0:02:57.1]}
4. Nd2 {[%clk 0:02:58]} 4... g6 {[%clk 0:02:56.7]} 5. Ngf3 {[%clk 0:02:57.8]}
5... Bg7 {[%clk 0:02:56.6]} 6. c3 {[%clk 0:02:58.2]} 6... O-O {[%clk 0:02:56.3]}
7. Be2 {[%clk 0:02:56.3]} 7... Re8 {[%clk 0:02:56.1]} 8. h3 {[%clk 0:02:56.5]}
8... e5 {[%clk 0:02:55.5]} 9. O-O {[%clk 0:02:56]} 9... c6 {[%clk 0:02:51.1]}
10. Rc1 {[%clk 0:02:51.9]} 10... a5 {[%clk 0:02:43.6]} 11. a4 {[%clk 0:02:50.1]}
11... Qb6 {[%clk 0:02:42.4]} 12. Qc2 {[%clk 0:02:36.2]} 12... exd4 {[%clk
0:02:38.8]} 13. cxd4 {[%clk 0:02:35.2]} 13... Nb8 {[%clk 0:02:34.6]} 14. Ne5
{[%clk 0:02:23.9]} 14... Bf5 {[%clk 0:02:29]} 15. Bd3 {[%clk 0:02:20.4]} 15...
Bxd3 {[%clk 0:02:27.9]} 16. Nxd3 {[%clk 0:02:21.3]} 16... Na6 {[%clk 0:02:28.3]}
17. Qb3 {[%clk 0:02:15.7]} 17... Qxb3 {[%clk 0:02:24.9]} 18. Nxb3 {[%clk
0:02:16.6]} 18... Ne4 {[%clk 0:02:25.6]} 19. Bf4 {[%clk 0:02:16.4]} 19... Nb4
{[%clk 0:02:04]} 20. Rfd1 {[%clk 0:02:03.5]} 20... Nxd3 {[%clk 0:01:44.9]} 21.
Rxd3 {[%clk 0:02:04.4]} 21... Bf8 {[%clk 0:01:45.6]} 22. f3 {[%clk 0:01:59.6]}
22... Nf6 {[%clk 0:01:38.7]} 23. Nc5 {[%clk 0:01:58.7]} 23... Bxc5 {[%clk
0:01:37.5]} 24. Rxc5 {[%clk 0:01:58.1]} 24... Nd7 {[%clk 0:01:36.8]} 25. Rc2
{[%clk 0:01:55.6]} 25... Nf8 {[%clk 0:01:02.6]} 26. Rb3 {[%clk 0:01:50.9]} 26...
Ra7 {[%clk 0:01:02.6]} 27. Kf2 {[%clk 0:01:49.3]} 27... Ne6 {[%clk 0:00:58.9]}
28. Be5 {[%clk 0:01:49.7]} 28... Kf8 {[%clk 0:00:56.9]} 29. Bf6 {[%clk
0:01:46.4]} 29... Nc7 {[%clk 0:00:54]} 30. h4 {[%clk 0:01:41.9]} 30... Re6
{[%clk 0:00:53.6]} 31. Be5 {[%clk 0:01:42]} 31... Na6 {[%clk 0:00:43.6]} 32. Rb6
{[%clk 0:01:33.9]} 32... f6 {[%clk 0:00:42.2]} 33. Bf4 {[%clk 0:01:32.7]} 33...
Ke8 {[%clk 0:00:31.5]} 34. Rb3 {[%clk 0:01:27.3]} 34... Nb4 {[%clk 0:00:29]} 35.
Rc1 {[%clk 0:01:26.8]} 35... Kd7 {[%clk 0:00:28.3]} 36. Rh1 {[%clk 0:01:21.6]}
36... Ra8 {[%clk 0:00:27.5]} 37. Rc3 {[%clk 0:01:22.2]} 37... Rae8 {[%clk
0:00:27.1]} 38. g4 {[%clk 0:01:18.8]} 38... Na2 {[%clk 0:00:23.3]} 39. Rb3
{[%clk 0:01:18.9]} 39... Nb4 {[%clk 0:00:24.2]} 40. g5 {[%clk 0:01:18.5]} 40...
b5 {[%clk 0:00:13.8]} 41. Ra1 {[%clk 0:01:10.4]} 41... Nc2 {[%clk 0:00:03.9]}
42. Rc1 {[%clk 0:01:10.4]} 42... Nb4 {[%clk 0:00:02.2]} 43. axb5 {[%clk
0:01:09.8]} 43... cxb5 {[%clk 0:00:03]} 44. Ra1 {[%clk 0:01:10.1]} 44... Rc6
{[%clk 0:00:01.3]} 45. Rxa5 {[%clk 0:01:10.2]} 45... Rc2+ {[%clk 0:00:00.6]} 46.
Kg3 {[%clk 0:01:10.8]} 46... fxg5 {[%clk 0:00:01.2]} 47. hxg5 {[%clk 0:01:10.2]}
47... Nc6 {[%clk 0:00:01.1]} 48. Raxb5 {[%clk 0:01:10]} 48... Nxd4 {[%clk
0:00:00.5]} 49. Rxd5+ {[%clk 0:01:09.9]} 1-0

[Event "Early-Titled-Tuesday-Blitz-May-07-2024"]
[Site "Chess.com"]
[Date "2024.05.07"]
[Round "3"]
[White "Zarinur"]
[Black "chessdjw"]
[Result "1-0"]
[WhiteElo "2530"]
[BlackElo "2763"]
[TimeControl "180+1"]
[EndTime "8:31:40 PDT"]
[Termination "Zarinur won by checkmate"]

1. e4 {[%clk 0:03:00.9]} 1... e5 {[%clk 0:02:59.9]} 2. Nf3 {[%clk 0:03:01.1]}
2... Nc6 {[%clk 0:03:00.5]} 3. Nc3 {[%clk 0:03:01.3]} 3... Nf6 {[%clk
0:03:00.6]} 4. Bb5 {[%clk 0:03:01.9]} 4... Bd6 {[%clk 0:02:57.8]} 5. d3 {[%clk
0:03:00.8]} 5... h6 {[%clk 0:02:56]} 6. a3 {[%clk 0:02:59.9]} 6... O-O {[%clk
0:02:54.5]} 7. g4 {[%clk 0:02:52.8]} 7... Nd4 {[%clk 0:02:26.7]} 8. g5 {[%clk
0:02:47.8]} 8... hxg5 {[%clk 0:02:20.1]} 9. Bxg5 {[%clk 0:02:48.7]} 9... Be7
{[%clk 0:01:56.9]} 10. Rg1 {[%clk 0:02:35.6]} 10... c6 {[%clk 0:01:38]} 11. Ba4
{[%clk 0:02:27.8]} 11... d5 {[%clk 0:01:31.7]} 12. Nxe5 {[%clk 0:02:08.3]} 12...
Qc7 {[%clk 0:00:33.2]} 13. f4 {[%clk 0:01:46.9]} 13... dxe4 {[%clk 0:00:27.2]}
14. dxe4 {[%clk 0:01:33.9]} 14... Rd8 {[%clk 0:00:27.5]} 15. Qd3 {[%clk
0:00:57.5]} 15... b5 {[%clk 0:00:22.5]} 16. Qg3 {[%clk 0:00:29.7]} 16... bxa4
{[%clk 0:00:22.4]} 17. Bh6 {[%clk 0:00:28.1]} 17... Nxc2+ {[%clk 0:00:21.7]} 18.
Ke2 {[%clk 0:00:14.9]} 18... Ba6+ {[%clk 0:00:20.7]} 19. Kf3 {[%clk 0:00:15.1]}
19... g6 {[%clk 0:00:09.5]} 20. Rad1 {[%clk 0:00:11.2]} 20... Nh5 {[%clk
0:00:09]} 21. Qg4 {[%clk 0:00:07.1]} 21... Rxd1 {[%clk 0:00:09.2]} 22. Rxd1
{[%clk 0:00:06.9]} 22... Rd8 {[%clk 0:00:09.1]} 23. Nxg6 {[%clk 0:00:04.5]}
23... Nf6 {[%clk 0:00:08.1]} 24. Qg2 {[%clk 0:00:03.5]} 24... Bc5 {[%clk
0:00:03.4]} 25. Ne7+ {[%clk 0:00:03.4]} 25... Kh7 {[%clk 0:00:03.2]} 26. Qg7#
{[%clk 0:00:04.1]} 1-0

[Event "Early-Titled-Tuesday-Blitz-May-07-2024"]
[Site "Chess.com"]
[Date "2024.05.07"]
[Round "3"]
[White "Meri-Arabidze"]
[Black "NastyaHn"]
[Result "1-0"]
[WhiteElo "2700"]
[BlackElo "2464"]
[TimeControl "180+1"]
[EndTime "8:31:43 PDT"]
[Termination "Meri-Arabidze won by checkmate"]

1. Nf3 {[%clk 0:03:00.9]} 1... Nf6 {[%clk 0:02:56.6]} 2. c4 {[%clk 0:03:00.9]}
2... e6 {[%clk 0:02:53.4]} 3. g3 {[%clk 0:03:00.9]} 3... d5 {[%clk 0:02:53.7]}
4. Bg2 {[%clk 0:03:01.6]} 4... Be7 {[%clk 0:02:54]} 5. O-O {[%clk 0:03:01.7]}
5... O-O {[%clk 0:02:54.4]} 6. d4 {[%clk 0:03:01.1]} 6... dxc4 {[%clk
0:02:54.5]} 7. Qc2 {[%clk 0:03:01.7]} 7... a6 {[%clk 0:02:54.4]} 8. a4 {[%clk
0:03:01.6]} 8... Bd7 {[%clk 0:02:54.6]} 9. Rd1 {[%clk 0:03:01.9]} 9... Bc6
{[%clk 0:02:54.6]} 10. Nc3 {[%clk 0:03:02]} 10... Bb4 {[%clk 0:02:45.3]} 11. Bg5
{[%clk 0:02:43.7]} 11... Nbd7 {[%clk 0:02:35.3]} 12. Na2 {[%clk 0:02:35.1]}
12... Be7 {[%clk 0:02:32]} 13. Qxc4 {[%clk 0:02:34.2]} 13... a5 {[%clk
0:02:23.2]} 14. Nc3 {[%clk 0:02:32.8]} 14... Nb6 {[%clk 0:02:13.4]} 15. Qd3
{[%clk 0:02:32.6]} 15... Nbd5 {[%clk 0:02:01.5]} 16. Nb5 {[%clk 0:02:17.4]}
16... Nb4 {[%clk 0:01:50.5]} 17. Qc4 {[%clk 0:02:14.4]} 17... Rc8 {[%clk
0:01:36.8]} 18. e3 {[%clk 0:01:53.9]} 18... Bd5 {[%clk 0:01:31.4]} 19. Qe2
{[%clk 0:01:54]} 19... Ne4 {[%clk 0:01:26.9]} 20. Bxe7 {[%clk 0:01:52.5]} 20...
Qxe7 {[%clk 0:01:27]} 21. Ne5 {[%clk 0:01:50.9]} 21... c6 {[%clk 0:01:03.3]} 22.
Nc3 {[%clk 0:01:49.4]} 22... Nxc3 {[%clk 0:01:02]} 23. bxc3 {[%clk 0:01:50.3]}
23... Bxg2 {[%clk 0:01:01.8]} 24. cxb4 {[%clk 0:01:26.7]} 24... Be4 {[%clk
0:00:48.8]} 25. bxa5 {[%clk 0:01:20.5]} 25... Ra8 {[%clk 0:00:40.8]} 26. f3
{[%clk 0:01:10.1]} 26... Bg6 {[%clk 0:00:37]} 27. Qd2 {[%clk 0:01:09]} 27... Qc7
{[%clk 0:00:26.2]} 28. Nxg6 {[%clk 0:00:54.1]} 28... fxg6 {[%clk 0:00:23.4]} 29.
f4 {[%clk 0:00:44]} 29... Rxa5 {[%clk 0:00:19.1]} 30. Qb4 {[%clk 0:00:42.5]}
30... Rfa8 {[%clk 0:00:18.3]} 31. Qb3 {[%clk 0:00:42.3]} 31... Qd7 {[%clk
0:00:16.4]} 32. Rdb1 {[%clk 0:00:42.4]} 32... R8a7 {[%clk 0:00:16]} 33. Qd1
{[%clk 0:00:29.1]} 33... Qd5 {[%clk 0:00:15.6]} 34. Kf2 {[%clk 0:00:20.5]} 34...
g5 {[%clk 0:00:13]} 35. Qh5 {[%clk 0:00:17.7]} 35... gxf4 {[%clk 0:00:11.5]} 36.
Qe8# {[%clk 0:00:17.2]} 1-0

[Event "Early-Titled-Tuesday-Blitz-May-07-2024"]
[Site "Chess.com"]
[Date "2024.05.07"]
[Round "3"]
[White "Stanbad1"]
[Black "AttilaTurzo"]
[Result "0-1"]
[WhiteElo "2606"]
[BlackElo "2467"]
[TimeControl "180+1"]
[EndTime "8:31:43 PDT"]
[Termination "AttilaTurzo won by checkmate"]

1. d4 {[%clk 0:03:00.9]} 1... d5 {[%clk 0:02:59.9]} 2. Nc3 {[%clk 0:03:01.1]}
2... c6 {[%clk 0:03:00.8]} 3. Bf4 {[%clk 0:03:01.2]} 3... Qb6 {[%clk 0:03:00.1]}
4. Rb1 {[%clk 0:03:01]} 4... Bf5 {[%clk 0:02:59.3]} 5. e3 {[%clk 0:02:53]} 5...
Nf6 {[%clk 0:02:53.8]} 6. f3 {[%clk 0:02:51.8]} 6... e6 {[%clk 0:02:45.4]} 7. g4
{[%clk 0:02:51.5]} 7... Bg6 {[%clk 0:02:46]} 8. h4 {[%clk 0:02:52.2]} 8... h6
{[%clk 0:02:42.5]} 9. Bd3 {[%clk 0:02:51.5]} 9... Bxd3 {[%clk 0:02:39.3]} 10.
Qxd3 {[%clk 0:02:49.7]} 10... Be7 {[%clk 0:02:38.3]} 11. Nge2 {[%clk 0:02:49.3]}
11... c5 {[%clk 0:02:23.5]} 12. dxc5 {[%clk 0:02:45]} 12... Qxc5 {[%clk
0:02:20.5]} 13. Kf2 {[%clk 0:02:45.3]} 13... Nc6 {[%clk 0:01:38.8]} 14. a3
{[%clk 0:02:41.6]} 14... Qc4 {[%clk 0:01:31.7]} 15. Qxc4 {[%clk 0:02:39.6]}
15... dxc4 {[%clk 0:01:32.6]} 16. e4 {[%clk 0:02:38.7]} 16... O-O-O {[%clk
0:01:28.5]} 17. Be3 {[%clk 0:02:36.9]} 17... Nd7 {[%clk 0:01:21.7]} 18. b3
{[%clk 0:02:34]} 18... Bxa3 {[%clk 0:01:15.6]} 19. bxc4 {[%clk 0:02:32.4]} 19...
Bc5 {[%clk 0:01:14.9]} 20. Nb5 {[%clk 0:02:31.9]} 20... a6 {[%clk 0:01:06.9]}
21. Nbd4 {[%clk 0:02:31.8]} 21... Nxd4 {[%clk 0:01:04.6]} 22. Nxd4 {[%clk
0:02:32.7]} 22... Ne5 {[%clk 0:01:00.9]} 23. Nf5 {[%clk 0:02:23.3]} 23... exf5
{[%clk 0:00:53.7]} 24. Bxc5 {[%clk 0:02:22]} 24... fxe4 {[%clk 0:00:50.5]} 25.
fxe4 {[%clk 0:02:21.1]} 25... Rd2+ {[%clk 0:00:45.9]} 26. Kg3 {[%clk 0:02:18.4]}
26... Rxc2 {[%clk 0:00:43.7]} 27. Bd4 {[%clk 0:02:18.9]} 27... Re8 {[%clk
0:00:40.4]} 28. Rhf1 {[%clk 0:02:17.4]} 28... f6 {[%clk 0:00:35.5]} 29. g5
{[%clk 0:02:15.5]} 29... hxg5 {[%clk 0:00:33.6]} 30. hxg5 {[%clk 0:02:16.4]}
30... Nxc4 {[%clk 0:00:29.1]} 31. gxf6 {[%clk 0:02:15.6]} 31... gxf6 {[%clk
0:00:28.9]} 32. Rxf6 {[%clk 0:02:15.5]} 32... Nd2 {[%clk 0:00:15.9]} 33. Rf7
{[%clk 0:02:11.6]} 33... Nxb1 {[%clk 0:00:15.4]} 34. e5 {[%clk 0:02:07.5]} 34...
Rc4 {[%clk 0:00:14.3]} 35. Bb6 {[%clk 0:02:06.2]} 35... Nd2 {[%clk 0:00:13.4]}
36. Rf5 {[%clk 0:02:03]} 36... Ne4+ {[%clk 0:00:12.7]} 37. Kf3 {[%clk 0:02:03]}
37... Nc3 {[%clk 0:00:12.3]} 38. Rf7 {[%clk 0:01:58.7]} 38... Nd5 {[%clk
0:00:11.9]} 39. Ba5 {[%clk 0:01:57.6]} 39... Rxe5 {[%clk 0:00:07.2]} 40. Rf8+
{[%clk 0:01:57.3]} 40... Kd7 {[%clk 0:00:07.5]} 41. Rd8+ {[%clk 0:01:57.7]}
41... Kc6 {[%clk 0:00:07.2]} 42. Bd2 {[%clk 0:01:58.3]} 42... Rf5+ {[%clk
0:00:06.1]} 43. Ke2 {[%clk 0:01:58.6]} 43... Re4+ {[%clk 0:00:05.3]} 44. Kd3
{[%clk 0:01:58.8]} 44... Re6 {[%clk 0:00:05.7]} 45. Rc8+ {[%clk 0:01:58.5]}
45... Nc7 {[%clk 0:00:05.7]} 46. Rh8 {[%clk 0:01:58.2]} 46... Rf7 {[%clk
0:00:06]} 47. Bg5 {[%clk 0:01:56.7]} 47... Rd7+ {[%clk 0:00:06.9]} 48. Kc3
{[%clk 0:01:56.8]} 48... b5 {[%clk 0:00:07.2]} 49. Rb8 {[%clk 0:01:55.1]} 49...
Nd5+ {[%clk 0:00:07.3]} 50. Kc2 {[%clk 0:01:54.5]} 50... Rb7 {[%clk 0:00:07.8]}
51. Rc8+ {[%clk 0:01:54.2]} 51... Rc7 {[%clk 0:00:08.4]} 52. Rd8 {[%clk
0:01:54.7]} 52... Kb7+ {[%clk 0:00:08.1]} 53. Kb3 {[%clk 0:01:52.8]} 53... Re5
{[%clk 0:00:07.6]} 54. Bd2 {[%clk 0:01:51.6]} 54... Rf5 {[%clk 0:00:07.6]} 55.
Ba5 {[%clk 0:01:50.8]} 55... Rc4 {[%clk 0:00:07.5]} 56. Rd7+ {[%clk 0:01:50.3]}
56... Nc7 {[%clk 0:00:08.1]} 57. Rd6 {[%clk 0:01:49.9]} 57... Rf3+ {[%clk
0:00:08]} 58. Kb2 {[%clk 0:01:50.3]} 58... Rg4 {[%clk 0:00:07.4]} 59. Rb6+
{[%clk 0:01:50.1]} 59... Kc8 {[%clk 0:00:07.1]} 60. Bc3 {[%clk 0:01:32.2]} 60...
Rg2+ {[%clk 0:00:07.1]} 61. Kb3 {[%clk 0:01:32.6]} 61... Rgg3 {[%clk 0:00:06.6]}
62. Rc6 {[%clk 0:01:33.2]} 62... Rxc3+ {[%clk 0:00:06.7]} 63. Rxc3 {[%clk
0:01:33]} 63... Rxc3+ {[%clk 0:00:07.6]} 64. Kxc3 {[%clk 0:01:33.9]} 64... Kb7
{[%clk 0:00:07.9]} 65. Kb4 {[%clk 0:01:34.8]} 65... Kc6 {[%clk 0:00:08.7]} 66.
Ka5 {[%clk 0:01:35.7]} 66... Nd5 {[%clk 0:00:06.6]} 67. Kxa6 {[%clk 0:01:34.9]}
67... b4 {[%clk 0:00:06.8]} 68. Ka5 {[%clk 0:01:35.8]} 68... b3 {[%clk
0:00:07.5]} 69. Ka4 {[%clk 0:01:36.7]} 69... b2 {[%clk 0:00:08.2]} 70. Ka3
{[%clk 0:01:37.3]} 70... b1=Q {[%clk 0:00:08.9]} 71. Ka4 {[%clk 0:01:37.5]}
71... Qb4# {[%clk 0:00:08.9]} 0-1

[Event "Early-Titled-Tuesday-Blitz-May-07-2024"]
[Site "Chess.com"]
[Date "2024.05.07"]
[Round "3"]
[White "Artyom_ChessMate"]
[Black "Me_ch_an"]
[Result "0-1"]
[WhiteElo "2563"]
[BlackElo "2382"]
[TimeControl "180+1"]
[EndTime "8:31:44 PDT"]
[Termination "Me_ch_an won by checkmate"]

1. e4 {[%clk 0:03:00.9]} 1... c5 {[%clk 0:02:59.9]} 2. Nc3 {[%clk 0:03:00.9]}
2... a6 {[%clk 0:02:53.9]} 3. g3 {[%clk 0:03:00.6]} 3... b5 {[%clk 0:02:54.1]}
4. Bg2 {[%clk 0:03:01.1]} 4... Bb7 {[%clk 0:02:54.6]} 5. d3 {[%clk 0:03:01.6]}
5... e6 {[%clk 0:02:55.2]} 6. Nh3 {[%clk 0:03:02.1]} 6... Nf6 {[%clk 0:02:55.4]}
7. O-O {[%clk 0:03:02.3]} 7... d5 {[%clk 0:02:54.3]} 8. e5 {[%clk 0:02:30.5]}
8... Nfd7 {[%clk 0:02:52.3]} 9. f4 {[%clk 0:02:30.8]} 9... Nc6 {[%clk
0:02:33.4]} 10. f5 {[%clk 0:02:05.5]} 10... Ndxe5 {[%clk 0:02:25.8]} 11. fxe6
{[%clk 0:02:03.2]} 11... fxe6 {[%clk 0:02:26]} 12. Nf4 {[%clk 0:01:58.5]} 12...
Qd6 {[%clk 0:02:19.2]} 13. Bh3 {[%clk 0:01:52.3]} 13... Nd4 {[%clk 0:02:17.1]}
14. a4 {[%clk 0:01:08.6]} 14... Be7 {[%clk 0:02:05.6]} 15. axb5 {[%clk
0:00:57.5]} 15... axb5 {[%clk 0:02:05.5]} 16. Rxa8+ {[%clk 0:00:58.4]} 16...
Bxa8 {[%clk 0:02:05.9]} 17. Nb1 {[%clk 0:00:59.3]} 17... O-O {[%clk 0:02:01.4]}
18. c3 {[%clk 0:00:59.7]} 18... Ndf3+ {[%clk 0:01:53.4]} 19. Rxf3 {[%clk
0:00:35.7]} 19... Nxf3+ {[%clk 0:01:54.3]} 20. Qxf3 {[%clk 0:00:36.4]} 20... Rf6
{[%clk 0:01:54.3]} 21. Qe2 {[%clk 0:00:33.4]} 21... e5 {[%clk 0:01:53.5]} 22.
Ng2 {[%clk 0:00:28.1]} 22... d4 {[%clk 0:01:47.4]} 23. Bg5 {[%clk 0:00:26.1]}
23... Rf8 {[%clk 0:01:45.3]} 24. Bxe7 {[%clk 0:00:26]} 24... Qxe7 {[%clk
0:01:43.2]} 25. Nd2 {[%clk 0:00:25.7]} 25... dxc3 {[%clk 0:01:38.2]} 26. bxc3
{[%clk 0:00:25.6]} 26... Qd6 {[%clk 0:01:36]} 27. Ne4 {[%clk 0:00:24.9]} 27...
Qc6 {[%clk 0:01:30.9]} 28. Ne3 {[%clk 0:00:20.5]} 28... h6 {[%clk 0:01:27.8]}
29. Bg2 {[%clk 0:00:20.7]} 29... Qg6 {[%clk 0:01:19]} 30. Qa2+ {[%clk
0:00:16.1]} 30... Kh8 {[%clk 0:01:16.3]} 31. Nxc5 {[%clk 0:00:12.4]} 31... Bxg2
{[%clk 0:01:15.9]} 32. Qxg2 {[%clk 0:00:13.3]} 32... Rc8 {[%clk 0:01:14.1]} 33.
Qd5 {[%clk 0:00:12.9]} 33... Qf6 {[%clk 0:01:11.5]} 34. Ng4 {[%clk 0:00:03.9]}
34... Qb6 {[%clk 0:01:11.4]} 35. d4 {[%clk 0:00:03.6]} 35... exd4 {[%clk
0:01:11.6]} 36. cxd4 {[%clk 0:00:04.5]} 36... b4 {[%clk 0:01:12]} 37. Ne5 {[%clk
0:00:04.7]} 37... b3 {[%clk 0:01:09.3]} 38. Nf7+ {[%clk 0:00:05]} 38... Kh7
{[%clk 0:01:09]} 39. Nxb3 {[%clk 0:00:04.6]} 39... Qb4 {[%clk 0:01:03.5]} 40.
Nc5 {[%clk 0:00:03.8]} 40... Qe1+ {[%clk 0:01:03]} 41. Kg2 {[%clk 0:00:04.3]}
41... Qe2+ {[%clk 0:01:03.4]} 42. Kh3 {[%clk 0:00:04.8]} 42... Re8 {[%clk
0:01:02.4]} 43. Qf5+ {[%clk 0:00:04.3]} 43... g6 {[%clk 0:01:01.4]} 44. Qg4
{[%clk 0:00:03.3]} 44... Qf1+ {[%clk 0:00:58.8]} 45. Kh4 {[%clk 0:00:03.5]}
45... g5+ {[%clk 0:00:58.1]} 46. Kh5 {[%clk 0:00:03.3]} 46... Qxf7# {[%clk
0:00:57.7]} 0-1

[Event "Early-Titled-Tuesday-Blitz-May-07-2024"]
[Site "Chess.com"]
[Date "2024.05.07"]
[Round "3"]
[White "patzer-reloaded"]
[Black "Shiner22"]
[Result "0-1"]
[WhiteElo "2468"]
[BlackElo "2281"]
[TimeControl "180+1"]
[EndTime "8:31:44 PDT"]
[Termination "Shiner22 won by checkmate"]

1. d4 {[%clk 0:02:55.5]} 1... Nf6 {[%clk 0:02:59.4]} 2. c4 {[%clk 0:02:56.4]}
2... e6 {[%clk 0:02:59.7]} 3. Nc3 {[%clk 0:02:57]} 3... Bb4 {[%clk 0:02:59.7]}
4. Nf3 {[%clk 0:02:57.9]} 4... b6 {[%clk 0:02:59.1]} 5. e3 {[%clk 0:02:58]} 5...
Ne4 {[%clk 0:02:56.9]} 6. Qc2 {[%clk 0:02:50.3]} 6... Bb7 {[%clk 0:02:57]} 7.
Bd3 {[%clk 0:02:44.5]} 7... f5 {[%clk 0:02:56.4]} 8. Bd2 {[%clk 0:02:39.8]} 8...
Bxc3 {[%clk 0:02:54.3]} 9. Bxc3 {[%clk 0:02:39.4]} 9... d6 {[%clk 0:02:48.2]}
10. Nd2 {[%clk 0:02:35]} 10... Nxc3 {[%clk 0:02:35.1]} 11. Qxc3 {[%clk
0:02:33.1]} 11... O-O {[%clk 0:02:31.2]} 12. O-O {[%clk 0:02:30.4]} 12... Nd7
{[%clk 0:02:29.2]} 13. e4 {[%clk 0:02:24.3]} 13... f4 {[%clk 0:02:23.7]} 14. Nf3
{[%clk 0:02:08.3]} 14... a5 {[%clk 0:02:13.3]} 15. Rfd1 {[%clk 0:01:52.7]} 15...
Qe7 {[%clk 0:02:05.7]} 16. b3 {[%clk 0:01:42.2]} 16... e5 {[%clk 0:02:04.5]} 17.
d5 {[%clk 0:01:38.2]} 17... g5 {[%clk 0:01:57.1]} 18. Nd2 {[%clk 0:01:25.5]}
18... g4 {[%clk 0:01:54.7]} 19. a3 {[%clk 0:00:44.4]} 19... Rf6 {[%clk
0:01:41.3]} 20. f3 {[%clk 0:00:37.5]} 20... Rg6 {[%clk 0:01:29.5]} 21. Be2
{[%clk 0:00:36.8]} 21... g3 {[%clk 0:01:27.1]} 22. h3 {[%clk 0:00:36.6]} 22...
Bc8 {[%clk 0:00:56.1]} 23. b4 {[%clk 0:00:23.4]} 23... Qh4 {[%clk 0:00:53.8]}
24. Bf1 {[%clk 0:00:13]} 24... Nf6 {[%clk 0:00:52.6]} 25. c5 {[%clk 0:00:06.3]}
25... Bxh3 {[%clk 0:00:50.5]} 26. cxd6 {[%clk 0:00:05]} 26... cxd6 {[%clk
0:00:46.4]} 27. Qc6 {[%clk 0:00:03.7]} 27... Rf8 {[%clk 0:00:43.4]} 28. Qxd6
{[%clk 0:00:03.4]} 28... Ng4 {[%clk 0:00:28.7]} 29. Qxg6+ {[%clk 0:00:04.3]}
29... hxg6 {[%clk 0:00:27.6]} 30. fxg4 {[%clk 0:00:03.3]} 30... Bxg4 {[%clk
0:00:27.1]} 31. Bc4 {[%clk 0:00:02]} 31... Qh2+ {[%clk 0:00:25.9]} 32. Kf1
{[%clk 0:00:02.2]} 32... Qh1# {[%clk 0:00:26.4]} 0-1